[Event "1000GM BonaFIDE January 2024"]
[Site "Sunnyvale"]
[Date "2024.01.22"]
[Round "5.2"]
[White "Bheemaiah, Ayush"]
[Black "Nathan, Arjun"]
[Result "1-0"]
[ECO "C88"]
[WhiteElo "1639"]
[BlackElo "1564"]
[Annotator "NA RC COMBH"]
[PlyCount "107"]
[EventDate "2024.01.20"]
[EventType "swiss"]
[EventCountry "USA"]
[SourceTitle "playchess.com"]
[Source "ChessBase"]
[SourceQuality "1"]
[TimeControl "5400+30"]

1. e4 {[%emt 0:00:35]} e5 {[%emt 0:00:03]} 2. Nf3 {[%emt 0:00:03]} Nc6 {[%emt 0:00:05]} 3. Bb5 {[%emt 0:00:09]} a6 {[%emt 0:00:05]} 4. Ba4 {[%emt 0:00:04]} Nf6 {[%emt 0:00:05]} 5. O-O {[%emt 0:00:04]} b5 {[%emt 0:00:06]} 6. Bb3 {[%emt 0:00:04]} Be7 {[%emt 0:00:07]} 7. Re1 {[%emt 0:00:03]} O-O {[%emt 0:00:25]} 8. a4 {[%emt 0:00:06]} b4 {[%emt 0:00:28]} 9. a5 {[%emt 0:00:18]} d6 {[%emt 0:01:40]} 10. d3 {[%emt 0:00:15]} Bg4 {[%emt 0:06:44]} 11. h3 {[%emt 0:04:49]} Bxf3 {[%emt 0:00:58]} 12. Qxf3 {[%emt 0:01:28]} Nd4 {[%emt 0:00:48]} 13. Qd1 {[%emt 0:02:07]} Nxb3 {[%emt 0:00:24]} 14. cxb3 {[%emt 0:00:05]} d5 {[%emt 0:07:06]} 15. Qe2 {[%emt 0:08:30]} dxe4 {[%emt 0:05:32]} 16. dxe4 {[%emt 0:01:38]} Nd7 {[%emt 0:01:31]} 17. Be3 {[%emt 0:08:59]} Bc5 {[%emt 0:06:11]} 18. Nd2 {[%emt 0:07:57]} Qe7 {[%emt 0:05:05]} 19. Rac1 {[%emt 0:02:23]} Rfd8 {[%emt 0:06:16]} 20. Nf1 {[%emt 0:07:06]} g6 {[%emt 0:17:29]} 21. Red1 {[%emt 0:12:29]} Bd6 {[%emt 0:05:31]} 22. Qc4 {[%emt 0:04:51]} Nf8 {[%emt 0:02:26]} 23. Nh2 {[%emt 0:01:53]} Ne6 {[%emt 0:01:16]} 24. Nf3 {[%emt 0:01:14]} c5 {[%emt 0:09:24]} 25. h4 {[%emt 0:03:41]} f6 {[%emt 0:02:59]} 26. h5 {[%emt 0:04:56]} Kh8 {[%emt 0:01:28]} 27. hxg6 {[%emt 0:02:32]} hxg6 {[%emt 0:00:02]} 28. g3 {[%emt 0:00:27]} Nd4 {[%emt 0:03:08]} 29. Kg2 {[%emt 0:05:06]} Kg7 {[%emt 0:01:33]} 30. Rh1 {[%emt 0:02:03]} Qe6 {[%emt 0:02:49]} 31. Nxd4 {[%emt 0:06:42]} Qxc4 {[%emt 0:00:14]} 32. Nf5+ {[%emt 0:00:17]} gxf5 {[%emt 0:00:10]} 33. Rxc4 {[%emt 0:00:06]} fxe4 {[%emt 0:00:57]} 34. Rxe4 {[%emt 0:02:35]} Rac8 {[%emt 0:02:42]} 35. Rc4 {[%emt 0:01:49]} Rc6 {[%emt 0:00:40]} 36. Rch4 {[%emt 0:01:38]} Kf7 {[%emt 0:00:31]} 37. Rh7+ {[%emt 0:01:56]} Ke6 {[%emt 0:00:06]} 38. f4 {[%emt 0:02:12]} exf4 {[%emt 0:02:25]} 39. gxf4 {[%emt 0:00:07]} Bc7 {[%emt 0:01:37]} 40. Re1 {[%emt 0:01:57]} Kf5 {[%emt 0:00:46]} 41. Rh5+ {[%emt 0:01:28]} Kg6 {[%emt 0:00:25]} 42. Reh1 {[%emt 0:00:08]} Rg8 {[%emt 0:00:37]} 43. Kf3 {[%emt 0:01:12]} Kf7 {[%emt 0:02:55]} 44. f5 {[%emt 0:01:45]} Bxa5 {[%emt 0:01:33]} 45. Rd1 {[%emt 0:01:04]} Rd8 {[%emt 0:01:16]} 46. Rh7+ {[%emt 0:00:15]} Kg8 {[%emt 0:00:01]} 47. Rdh1 {[%emt 0:00:23]} Kf8 {[%emt 0:00:50]} 48. Bh6+ {[%emt 0:01:40]} Kg8 {[%emt 0:00:02]} 49. Rg7+ {[%emt 0:01:08]} Kh8 {[%emt 0:00:01]} 50. Rg6 {[%emt 0:00:37]} Rd7 {[%emt 0:01:23]} 51. Bg7+ {[%emt 0:00:27]} Kg8 {[%emt 0:00:02]} 52. Bxf6+ {[%emt 0:00:09]} Kf7 {[%emt 0:00:04]} 53. Rh7+ {[%emt 0:00:11]} Ke8 {[%emt 0:00:12]} 54. Rg8# {[%emt 0:00:35]} 1-0

[Event "1000GM BonaFIDE January 2024"]
[Site "Sunnyvale"]
[Date "2024.01.22"]
[Round "5.3"]
[White "Rai, Achintya"]
[Black "Oza, Nikunj"]
[Result "1-0"]
[ECO "D00"]
[WhiteElo "1496"]
[BlackElo "1588"]
[Annotator "NA RC COMBH"]
[PlyCount "101"]
[EventDate "2024.01.20"]
[EventType "swiss"]
[EventCountry "USA"]
[SourceTitle "playchess.com"]
[Source "ChessBase"]
[SourceQuality "1"]
[TimeControl "5400+30"]

1. d4 {[%emt 0:00:06]} d5 {[%emt 0:00:07]} 2. Nc3 {[%emt 0:00:02]} Nf6 {[%emt 0:00:53]} 3. Bf4 {[%emt 0:00:06]} c6 {[%emt 0:00:20]} 4. e3 {[%emt 0:00:08]} Bf5 {[%emt 0:00:47]} 5. f3 {[%emt 0:00:15]} h6 {[%emt 0:01:28]} 6. g4 {[%emt 0:00:18]} Bh7 {[%emt 0:00:38]} 7. h4 {[%emt 0:00:06]} e6 {[%emt 0:02:40]} 8. Bd3 {[%emt 0:01:23]} Bxd3 {[%emt 0:02:36]} 9. Qxd3 {[%emt 0:00:21]} Bd6 {[%emt 0:02:46]} 10. Nge2 {[%emt 0:01:02]} Bxf4 {[%emt 0:08:05]} 11. Nxf4 {[%emt 0:00:12]} Qc7 {[%emt 0:04:04]} 12. O-O-O {[%emt 0:01:54]} Na6 {[%emt 0:03:49]} 13. g5 {[%emt 0:01:29]} Nd7 {[%emt 0:01:16]} 14. g6 {[%emt 0:00:54]} Nf6 {[%emt 0:01:22]} 15. gxf7+ {[%emt 0:01:06]} Qxf7 {[%emt 0:00:20]} 16. Rdg1 {[%emt 0:02:53]} O-O-O {[%emt 0:04:30]} 17. Nce2 {[%emt 0:06:15]} Kb8 {[%emt 0:02:34]} 18. Ng6 {[%emt 0:01:23]} Rhg8 {[%emt 0:03:43]} 19. c3 {[%emt 0:04:15]} Nd7 {[%emt 0:07:08]} 20. e4 {[%emt 0:13:55]} dxe4 {[%emt 0:11:10]} 21. Qxe4 {[%emt 0:02:59]} c5 {[%emt 0:06:24]} 22. f4 {[%emt 0:13:36]} cxd4 {[%emt 0:03:11]} 23. Nxd4 {[%emt 0:00:06]} Nac5 {[%emt 0:05:10]} 24. Qe3 {[%emt 0:00:41]} Ka8 {[%emt 0:02:01]} 25. Kb1 {[%emt 0:00:47]} Nb6 {[%emt 0:03:35]} 26. h5 {[%emt 0:08:59]} Nd5 {[%emt 0:03:12]} 27. Qg3 {[%emt 0:00:37]} Qc7 {[%emt 0:02:21]} 28. Ne5 {[%emt 0:07:41]} Qb6 {[%emt 0:03:16]} 29. Re1 {[%emt 0:04:01]} Na4 {[%emt 0:02:46]} 30. Nb3 {[%emt 0:00:40]} Rc8 {[%emt 0:01:52]} 31. Rh2 {[%emt 0:03:11]} Rc7 {[%emt 0:01:08]} 32. Qf2 {[%emt 0:00:52]} Qa6 {[%emt 0:01:35]} 33. Qd4 {[%emt 0:02:54]} Rgc8 {[%emt 0:03:14]} 34. Ka1 {[%emt 0:02:32]} Naxc3 35. bxc3 {[%emt 0:01:22]} Rxc3 {[%emt 0:03:13]} 36. Rb2 {[%emt 0:00:41]} Qa3 {[%emt 0:01:58]} 37. Nd3 {[%emt 0:01:53]} a5 {[%emt 0:01:07]} 38. Ndc5 {[%emt 0:01:00]} b6 {[%emt 0:01:26]} 39. Nd7 {[%emt 0:07:52]} R8c4 {[%emt 0:01:27]} 40. Nxb6+ {[%emt 0:00:32]} Nxb6 {[%emt 0:00:06]} 41. Qxb6 {[%emt 0:00:15]} Ra4 {[%emt 0:01:08]} 42. Qa6+ {[%emt 0:00:32]} Kb8 {[%emt 0:00:01]} 43. Nc5+ {[%emt 0:00:24]} Rb4 {[%emt 0:01:00]} 44. Nb3 {[%emt 0:04:52]} a4 {[%emt 0:00:21]} 45. Rd1 {[%emt 0:01:49]} Rbxb3 {[%emt 0:00:39]} 46. Rd8+ {[%emt 0:00:29]} Kc7 {[%emt 0:00:03]} 47. Qc8+ {[%emt 0:00:03]} Kb6 {[%emt 0:00:05]} 48. Rxb3+ {[%emt 0:01:33]} axb3 {[%emt 0:00:06]} 49. Qxe6+ {[%emt 0:00:20]} Kb5 {[%emt 0:00:20]} 50. Rb8+ {[%emt 0:00:42]} Kc5 {[%emt 0:00:54]} 51. Qe7+ {[%emt 0:00:02]} 1-0

[Event "1000GM BonaFIDE January 2024"]
[Site "Sunnyvale"]
[Date "2024.01.22"]
[Round "5.4"]
[White "Vale Cruz, Armin"]
[Black "Kulkarni, Advit Amod"]
[Result "1-0"]
[ECO "C78"]
[WhiteElo "1598"]
[BlackElo "1510"]
[Annotator "NA RC COMBH"]
[PlyCount "57"]
[EventDate "2024.01.20"]
[EventType "swiss"]
[EventCountry "USA"]
[SourceTitle "playchess.com"]
[Source "ChessBase"]
[SourceQuality "1"]
[TimeControl "5400+30"]

1. e4 {[%emt 0:00:07]} e5 {[%emt 0:00:02]} 2. Nf3 {[%emt 0:00:04]} Nc6 {[%emt 0:00:04]} 3. Bb5 {[%emt 0:00:04]} a6 {[%emt 0:00:05]} 4. Ba4 {[%emt 0:00:04]} Nf6 {[%emt 0:00:05]} 5. O-O {[%emt 0:00:14]} Bc5 {[%emt 0:00:06]} 6. c3 {[%emt 0:01:45]} b5 {[%emt 0:00:17]} 7. Bc2 {[%emt 0:01:46]} d6 {[%emt 0:00:07]} 8. d4 {[%emt 0:00:33]} exd4 {[%emt 0:00:16]} 9. cxd4 {[%emt 0:00:12]} Bb6 {[%emt 0:00:08]} 10. h3 {[%emt 0:00:15]} O-O {[%emt 0:00:13]} 11. Nc3 {[%emt 0:00:19]} h6 {[%emt 0:00:24]} 12. a3 {[%emt 0:00:41]} Bb7 {[%emt 0:01:02]} 13. Re1 {[%emt 0:00:45]} Re8 {[%emt 0:06:34]} 14. b4 {[%emt 0:00:54]} Rb8 {[%emt 0:02:07]} 15. Qd3 {[%emt 0:01:26]} Kf8 {[%emt 0:07:47]} 16. Bd2 {[%emt 0:06:29]} d5 {[%emt 0:03:32]} 17. e5 {[%emt 0:04:21]} Ne4 {[%emt 0:00:05]} 18. Nxe4 {[%emt 0:04:51]} dxe4 {[%emt 0:00:02]} 19. Rxe4 {[%emt 0:00:27]} Nxd4 {[%emt 0:12:01]} 20. Rxd4 {[%emt 0:00:18]} Bxd4 {[%emt 0:00:09]} 21. Nxd4 {[%emt 0:06:58]} Qd5 {[%emt 0:02:42]} 22. f3 {[%emt 0:06:19]} Rbd8 {[%emt 0:03:16]} 23. Bc3 {[%emt 0:01:43]} Rxe5 {[%emt 0:02:24]} 24. Qh7 {[%emt 0:12:23]} Rg5 {[%emt 0:28:36]} 25. Re1 {[%emt 0:00:13]} f6 {[%emt 0:01:29]} 26. Bb3 {[%emt 0:00:28]} Rxg2+ {[%emt 0:01:08]} 27. Kxg2 {[%emt 0:00:14]} Qg5+ {[%emt 0:00:05]} 28. Kf1 {[%emt 0:00:19]} Qg3 {[%emt 0:00:21]} 29. Qg8# {[%emt 0:00:53]} 1-0

[Event "1000GM BonaFIDE January 2024"]
[Site "Sunnyvale"]
[Date "2024.01.22"]
[Round "5.5"]
[White "Wu, Andrew"]
[Black "Yang, Liwei"]
[Result "0-1"]
[ECO "D35"]
[WhiteElo "1969"]
[BlackElo "1483"]
[Annotator "TA"]
[PlyCount "82"]
[EventDate "2024.01.20"]
[EventType "swiss"]
[EventCountry "USA"]
[SourceTitle "playchess.com"]
[Source "ChessBase"]
[SourceQuality "1"]
[TimeControl "5400+30"]

{[%evp 20,82,39,27,26,4,1,0,0,-31,-37,-28,-18,-14,-2,-4,-13,-15,-13,-36,-18,-45,-40,-58,-21,-89,-64,-59,-62,-54,14,16,33,0,0,-20,0,0,0,-98,56,51,51,55,62,50,166,150,162,143,135,-1087,-1060,-1166,278,260,240,0,0,-1226,-1179,-1052,-1046,-29996,-29997]} 1. Nf3 {[%emt 1:31:00]} d5 {[%emt 0:31:19]} 2. c4 {[%emt 0:00:00]} e6 {[%emt 0:00:52]} 3. d4 {[%emt 0:00:00]} Nf6 {[%emt 0:00:10]} 4. Bf4 {[%emt 0:00:00]} Be7 {[%emt 0:00:48]} 5. Nc3 {[%emt 0:00:00]} c6 {[%emt 0:00:19]} 6. e3 {[%emt 0:00:00]} O-O {[%emt 0:00:30]} 7. Bd3 {[%emt 0:00:00]} Nbd7 {[%emt 0:02:42]} 8. O-O {[%emt 0:00:00]} b6 {[%emt 0:04:49]} 9. cxd5 {[%emt 0:00:00]} exd5 {[%emt 0:01:23]} 10. Rc1 {[%emt 0:00:00]} Bb7 {[%emt 0:05:50]} 11. h3 {[%emt 0:00:00]} c5 {[%emt 0:00:54][%cal Bc6c5,Bc5c4][%mdl 32]} 12. Nb5 {[%emt 0:00:00]} c4 {[%emt 0:02:10]} 13. Bb1 {[%emt 0:00:00]} a6 {[%emt 0:05:03] The position is equal.} 14. Bc7 {[%emt 0:00:00]} Qc8 {[%emt 0:01:28]} 15. Bd6 $1 {[%emt 0:00:00]} Bxd6 {[%emt 0:04:31]} 16. Nxd6 {[%emt 0:00:00]} Qc7 {[%emt 0:00:14]} 17. Nxb7 {[%emt 0:00:00]} Qxb7 {[%emt 0:00:06]} 18. g4 {[%emt 0:00:00]} b5 {[%emt 0:04:22]} 19. Qc2 {[%emt 0:00:00]} g6 {[%emt 0:03:37]} 20. Nd2 {[%emt 0:00:00]} Rae8 {[%emt 0:04:51]} 21. Rce1 {[%emt 0:00:00]} Ne4 {[%emt 0:01:48]} 22. Kg2 {[%emt 0:00:00]} (22. Nxe4 $11 Rxe4 (22... dxe4 23. f3 $15) 23. f4) 22... f5 {[%emt 0:05:57]} 23. f4 {[%emt 0:00:00]} Nxd2 {[%emt 0:04:00]} 24. Qxd2 {[%emt 0:00:00]} Re6 {[%emt 0:00:42]} ({Black should try} 24... fxg4 $1 $15 25. hxg4 Nf6) 25. gxf5 $11 {[%emt 0:00:00]} gxf5 {[%emt 0:00:07]} 26. Kh2 {[%emt 0:00:00]} Rg6 {[%emt 0:01:14] Active counter play!} 27. Qb4 {[%emt 0:00:00]} Kg7 {[%emt 0:03:37]} 28. Rg1 {[%emt 0:00:00]} Qc6 {[%emt 0:01:22]} 29. h4 {[%emt 0:00:00]} (29. Rg5 $11 {keeps the balance.} Qe6 30. Rh5) 29... Kf6 $2 {[%emt 0:03:38]} (29... Qe6 $1 $17 {aiming for ...Nf6.} 30. Rg5 h6 31. Rxg6+ Kxg6) 30. Rg5 $14 {[%emt 0:00:00]} Rxg5 {[%emt 0:01:46]} 31. hxg5+ {[%emt 0:00:00]} Kg7 $1 {[%emt 0:00:09]} 32. Rh1 {[%emt 0:00:00] Kg3 would now be deadly.} Re8 {[%emt 0:00:34]} (32... Qe6 $14) 33. Bxf5 $18 {[%emt 0:00:00]} Rxe3 {[%emt 0:00:26]} 34. Kg1 {[%emt 0:09:30]} (34. Re1 Qc7 35. Rxe3 Qxf4+ 36. Rg3 Qxf5 37. Qe7+ Kg6) 34... Nf8 {[%emt 0:00:31] And now ...Qe8 would win.} 35. Rh6 $2 {[%emt 0:00:48][%mdl 8192] [#]} (35. Kf2 $16 Qe8 36. Qd2) 35... Qe8 $1 $19 {[%emt 0:00:10]} (35... Ng6 36. Qd2 (36. Kf2 Qc7 $11) 36... Qe8 37. Kf2 $16) 36. Qd2 {[%emt 0:01:57] [#]} Ng6 $4 {[%emt 0:00:47][%mdl 8192]} (36... Re2 $1 $19 {[%cal Re2d2] and all is fine.} 37. Qc3 Re1+ 38. Qxe1 Qxe1+ 39. Kg2 Qe3 (39... Qe2+ $2 40. Kg3 $19)) 37. Kf2 $18 {[%emt 0:00:34]} Re7 {[%emt 0:00:45]} 38. Kf3 $2 {[%emt 0:00:14]} (38. Bb1 $18 {Black must now prevent f5.} Re4 39. Bxe4 Qxe4 40. Qe3) 38... Re1 $11 {[%emt 0:01:59]} 39. Bh3 $2 {[%emt 0:00:21][%mdl 8192]} (39. Kf2 $11 Ra1 40. a3) 39... Qe4+ $19 {[%emt 0:00:25]} 40. Kf2 {[%emt 0:00:15] [#]} Nxf4 $1 {[%emt 0:00:37] ( -> ...Nd3+)} 41. Re6 {[%emt 0:01:10]} (41. Bf1 Rb1) 41... Nxh3+ {[%emt 0:04:28] Weighted Error Value: White=0.79/Black=0.40.  Loses game:     	White=2     	---        Missed win:     	White=1     	---        Mistake:       	White=2     	Black=3      Inaccurate:     	White=3     	Black=1      OK:         	White=4     	Black=10     Best:        	White=3     	Black=3      Strong:       	White=1     	Black=2} 0-1